[Event "Early-Titled-Tuesday-Blitz-September-05-2023"]
[Site "Chess.com"]
[Date "2023.09.05"]
[Round "5"]
[White "jcmesafischer"]
[Black "Let_it_be_1"]
[Result "0-1"]
[WhiteElo "2479"]
[BlackElo "2638"]
[TimeControl "180+1"]
[EndTime "8:54:57 PDT"]
[Termination "Let_it_be_1 won by resignation"]

1. Nf3 {[%clk 0:02:43.6]} 1... d5 {[%clk 0:02:59.5]} 2. g3 {[%clk 0:02:43.4]}
2... Nf6 {[%clk 0:02:55.9]} 3. Bg2 {[%clk 0:02:43.2]} 3... e6 {[%clk 0:02:55.9]}
4. O-O {[%clk 0:02:42.8]} 4... Be7 {[%clk 0:02:56.5]} 5. b3 {[%clk 0:02:42.6]}
5... O-O {[%clk 0:02:56.3]} 6. Bb2 {[%clk 0:02:43.1]} 6... c5 {[%clk 0:02:55.4]}
7. e3 {[%clk 0:02:40.8]} 7... b6 {[%clk 0:02:53.1]} 8. d4 {[%clk 0:02:41.1]}
8... Nbd7 {[%clk 0:02:52.2]} 9. Nbd2 {[%clk 0:02:38.8]} 9... Bb7 {[%clk
0:02:51.6]} 10. c4 {[%clk 0:02:35.3]} 10... Rc8 {[%clk 0:02:51.2]} 11. cxd5
{[%clk 0:02:34.8]} 11... Nxd5 {[%clk 0:02:47.2]} 12. dxc5 {[%clk 0:02:32.4]}
12... Nxc5 {[%clk 0:02:46.7]} 13. Nd4 {[%clk 0:02:22.6]} 13... Nd3 {[%clk
0:02:32.8]} 14. Nc4 {[%clk 0:02:17.7]} 14... Nxb2 {[%clk 0:02:26.9]} 15. Nxb2
{[%clk 0:02:18.6]} 15... Nc3 {[%clk 0:02:26.8]} 16. Qd2 {[%clk 0:02:08.7]} 16...
Bxg2 {[%clk 0:02:21.8]} 17. Kxg2 {[%clk 0:02:07.1]} 17... Bf6 {[%clk 0:02:12.7]}
18. Rfc1 {[%clk 0:01:21.5]} 18... Qd5+ {[%clk 0:02:03.1]} 19. Nf3 {[%clk
0:01:00.7]} 19... Qxd2 {[%clk 0:01:52.3]} 20. Nxd2 {[%clk 0:01:01.6]} 20... Ne2
{[%clk 0:01:49.5]} 21. Rxc8 {[%clk 0:00:28.6]} 21... Rxc8 {[%clk 0:01:49.1]} 22.
Re1 {[%clk 0:00:26.4]} 22... Rc2 {[%clk 0:01:35.1]} 23. Rxe2 {[%clk 0:00:20.5]}
23... Rxb2 {[%clk 0:01:35.1]} 24. Kf3 {[%clk 0:00:14.4]} 24... Rxa2 {[%clk
0:01:34.4]} 25. Nc4 {[%clk 0:00:05.6]} 25... Rxe2 {[%clk 0:01:32]} 26. Kxe2
{[%clk 0:00:06.5]} 26... Kf8 {[%clk 0:01:14.4]} 27. Nd6 {[%clk 0:00:06.3]} 27...
Be5 {[%clk 0:01:13.6]} 28. Nb5 {[%clk 0:00:02]} 28... Bb8 {[%clk 0:01:12.8]} 29.
Kd3 {[%clk 0:00:02.4]} 29... Ke7 {[%clk 0:01:12.4]} 30. Kc4 {[%clk 0:00:02.8]}
30... Kd7 {[%clk 0:01:11.4]} 31. Nd4 {[%clk 0:00:03.4]} 31... a6 {[%clk
0:01:10.8]} 32. f4 {[%clk 0:00:02.1]} 32... b5+ {[%clk 0:01:07]} 33. Kc5 {[%clk
0:00:01.9]} 33... Ba7+ {[%clk 0:01:06.9]} 34. Kb4 {[%clk 0:00:02.5]} 34... Bb6
{[%clk 0:00:49.5]} 35. g4 {[%clk 0:00:01.3]} 35... Kd6 {[%clk 0:00:40.5]} 36.
Kc3 {[%clk 0:00:01.9]} 36... Bxd4+ {[%clk 0:00:38.8]} 37. Kxd4 {[%clk
0:00:01.6]} 37... a5 {[%clk 0:00:38.1]} 38. e4 {[%clk 0:00:01.7]} 38... f5
{[%clk 0:00:26.4]} 39. e5+ {[%clk 0:00:02.6]} 39... Kc6 {[%clk 0:00:21.9]} 40.
gxf5 {[%clk 0:00:03.5]} 40... exf5 {[%clk 0:00:22]} 41. h4 {[%clk 0:00:03.4]}
41... g6 {[%clk 0:00:22.1]} 42. Kd3 {[%clk 0:00:03.5]} 42... Kd5 {[%clk
0:00:22.3]} 43. Kc3 {[%clk 0:00:03.5]} 43... h6 {[%clk 0:00:21]} 44. Kd3 {[%clk
0:00:02.7]} 44... g5 {[%clk 0:00:18.4]} 45. hxg5 {[%clk 0:00:03.6]} 45... hxg5
{[%clk 0:00:18.8]} 46. fxg5 {[%clk 0:00:03.3]} 46... Kxe5 {[%clk 0:00:19.1]} 47.
Ke3 {[%clk 0:00:03.3]} 47... a4 {[%clk 0:00:16.1]} 48. bxa4 {[%clk 0:00:03.5]}
48... bxa4 {[%clk 0:00:16.1]} 49. Kd3 {[%clk 0:00:04.4]} 49... f4 {[%clk
0:00:15.1]} 50. Kc3 {[%clk 0:00:05.3]} 50... f3 {[%clk 0:00:14.8]} 51. Kb4
{[%clk 0:00:06.2]} 51... f2 {[%clk 0:00:14.9]} 52. Kxa4 {[%clk 0:00:07.1]} 52...
f1=Q {[%clk 0:00:15.4]} 53. Kb3 {[%clk 0:00:08]} 53... Qf5 {[%clk 0:00:15.2]}
0-1

[Event "Early-Titled-Tuesday-Blitz-September-05-2023"]
[Site "Chess.com"]
[Date "2023.09.05"]
[Round "5"]
[White "kingofthenil"]
[Black "BogdanDeac"]
[Result "1-0"]
[WhiteElo "2733"]
[BlackElo "3015"]
[TimeControl "180+1"]
[EndTime "8:55:03 PDT"]
[Termination "kingofthenil won by resignation"]

1. e4 {[%clk 0:03:00.9]} 1... e5 {[%clk 0:03:00.3]} 2. Nf3 {[%clk 0:02:58.6]}
2... Nf6 {[%clk 0:03:00.8]} 3. Nxe5 {[%clk 0:02:57.7]} 3... d6 {[%clk
0:03:00.8]} 4. Nd3 {[%clk 0:02:57.7]} 4... Nxe4 {[%clk 0:03:01]} 5. Qe2 {[%clk
0:02:57.9]} 5... Qe7 {[%clk 0:03:01.3]} 6. Nf4 {[%clk 0:02:58.1]} 6... Nf6
{[%clk 0:03:01.6]} 7. d4 {[%clk 0:02:57.9]} 7... Nc6 {[%clk 0:03:02]} 8. c3
{[%clk 0:02:57.3]} 8... g5 {[%clk 0:02:57.7]} 9. Nd3 {[%clk 0:02:50]} 9... Rg8
{[%clk 0:02:56.2]} 10. h4 {[%clk 0:02:41.7]} 10... h6 {[%clk 0:02:55.8]} 11.
hxg5 {[%clk 0:02:41.1]} 11... hxg5 {[%clk 0:02:56.7]} 12. Nd2 {[%clk 0:02:15.8]}
12... Bf5 {[%clk 0:02:52.7]} 13. Nf3 {[%clk 0:02:04.2]} 13... g4 {[%clk
0:02:51]} 14. Ng5 {[%clk 0:01:40.5]} 14... Nd5 {[%clk 0:02:40.8]} 15. Nf4 {[%clk
0:00:50.4]} 15... Nb6 {[%clk 0:01:08.8]} 16. Nh7 {[%clk 0:00:39.5]} 16... O-O-O
{[%clk 0:00:46.5]} 17. Nxf8 {[%clk 0:00:38.5]} 17... Qxf8 {[%clk 0:00:47.4]} 18.
Be3 {[%clk 0:00:35.5]} 18... d5 {[%clk 0:00:34.3]} 19. O-O-O {[%clk 0:00:33.5]}
19... Qd6 {[%clk 0:00:34.3]} 20. Qb5 {[%clk 0:00:32.5]} 20... Rh8 {[%clk
0:00:23.7]} 21. Be2 {[%clk 0:00:30.8]} 21... Kb8 {[%clk 0:00:16.7]} 22. Qc5
{[%clk 0:00:24]} 22... Qd7 {[%clk 0:00:15]} 23. b3 {[%clk 0:00:21.8]} 23... Rde8
{[%clk 0:00:13.2]} 24. Nh5 {[%clk 0:00:11.3]} 24... Rc8 {[%clk 0:00:09.1]} 25.
Kb2 {[%clk 0:00:05.9]} 25... Qe6 {[%clk 0:00:08.3]} 26. Nf4 {[%clk 0:00:04.2]}
26... Qd7 {[%clk 0:00:07.2]} 27. a4 {[%clk 0:00:04.6]} 27... a5 {[%clk
0:00:06.9]} 28. Bb5 {[%clk 0:00:04.4]} 28... g3 {[%clk 0:00:05.3]} 29. fxg3
{[%clk 0:00:03.2]} 29... Rxh1 {[%clk 0:00:05.3]} 30. Rxh1 {[%clk 0:00:03.5]}
30... Re8 {[%clk 0:00:05.8]} 31. Bc1 {[%clk 0:00:02.1]} 31... Be4 {[%clk
0:00:05]} 32. Rh6 {[%clk 0:00:02.5]} 32... Qg4 {[%clk 0:00:03.4]} 33. Bxc6
{[%clk 0:00:02.6]} 33... bxc6 {[%clk 0:00:03.8]} 34. Rxc6 {[%clk 0:00:03.2]}
34... Rc8 {[%clk 0:00:03.7]} 35. Rxb6+ {[%clk 0:00:03.1]} 35... cxb6 {[%clk
0:00:03.4]} 36. Qxb6+ {[%clk 0:00:04]} 36... Ka8 {[%clk 0:00:04]} 37. Qa6+
{[%clk 0:00:04.9]} 37... Kb8 {[%clk 0:00:04.4]} 38. Qb6+ {[%clk 0:00:05.7]}
38... Ka8 {[%clk 0:00:04.9]} 39. Nxd5 {[%clk 0:00:03.6]} 39... Qe2+ {[%clk
0:00:03.7]} 40. Ka3 {[%clk 0:00:04]} 40... Bxd5 {[%clk 0:00:03.5]} 41. Qxa5+
{[%clk 0:00:04.3]} 41... Kb7 {[%clk 0:00:03.6]} 42. Qxd5+ {[%clk 0:00:04.7]}
42... Rc6 {[%clk 0:00:03.4]} 43. Qd7+ {[%clk 0:00:04.4]} 43... Rc7 {[%clk
0:00:03.7]} 44. Qd5+ {[%clk 0:00:04.4]} 44... Rc6 {[%clk 0:00:04.1]} 45. Bf4
{[%clk 0:00:04.2]} 45... Qe6 {[%clk 0:00:03]} 46. Qxe6 {[%clk 0:00:04]} 46...
Rxe6 {[%clk 0:00:03.1]} 47. c4 {[%clk 0:00:04.7]} 47... Re2 {[%clk 0:00:03.6]}
48. Kb4 {[%clk 0:00:04.3]} 48... Rxg2 {[%clk 0:00:04.2]} 49. Kb5 {[%clk
0:00:04.7]} 49... Rb2 {[%clk 0:00:04.2]} 50. b4 {[%clk 0:00:05.2]} 1-0

[Event "Early-Titled-Tuesday-Blitz-September-05-2023"]
[Site "Chess.com"]
[Date "2023.09.05"]
[Round "5"]
[White "valemava"]
[Black "olderson"]
[Result "0-1"]
[WhiteElo "2288"]
[BlackElo "2480"]
[TimeControl "180+1"]
[EndTime "8:55:03 PDT"]
[Termination "olderson won by checkmate"]

1. e4 {[%clk 0:02:57.5]} 1... d6 {[%clk 0:02:59.5]} 2. d4 {[%clk 0:02:55.8]}
2... Nf6 {[%clk 0:03:00.4]} 3. Nc3 {[%clk 0:02:55.6]} 3... e5 {[%clk 0:03:01.1]}
4. Be3 {[%clk 0:02:54.6]} 4... Be7 {[%clk 0:03:01.1]} 5. f3 {[%clk 0:02:54.5]}
5... O-O {[%clk 0:03:01.6]} 6. Nge2 {[%clk 0:02:54.2]} 6... Nbd7 {[%clk
0:03:02.2]} 7. Qd2 {[%clk 0:02:53.9]} 7... c6 {[%clk 0:03:02.9]} 8. g4 {[%clk
0:02:51.5]} 8... b5 {[%clk 0:03:03]} 9. Ng3 {[%clk 0:02:49.1]} 9... b4 {[%clk
0:02:56.5]} 10. Nce2 {[%clk 0:02:48.6]} 10... c5 {[%clk 0:02:46.3]} 11. d5
{[%clk 0:02:46.6]} 11... Nb6 {[%clk 0:02:43.9]} 12. b3 {[%clk 0:02:45.8]} 12...
a5 {[%clk 0:02:43.6]} 13. h4 {[%clk 0:02:42.1]} 13... a4 {[%clk 0:02:43.3]} 14.
g5 {[%clk 0:02:35.2]} 14... Ne8 {[%clk 0:02:41.4]} 15. Bh3 {[%clk 0:02:30.7]}
15... axb3 {[%clk 0:02:35.3]} 16. cxb3 {[%clk 0:02:30.2]} 16... Nc7 {[%clk
0:01:50.4]} 17. Bxc8 {[%clk 0:02:25.8]} 17... Qxc8 {[%clk 0:01:50.1]} 18. Nf5
{[%clk 0:02:25.4]} 18... Qd7 {[%clk 0:01:50.7]} 19. Kf2 {[%clk 0:02:25]} 19...
Nb5 {[%clk 0:01:51.1]} 20. h5 {[%clk 0:02:23.5]} 20... Nd4 {[%clk 0:01:50]} 21.
Bxd4 {[%clk 0:02:18.2]} 21... exd4 {[%clk 0:01:49.4]} 22. Qf4 {[%clk 0:02:00.8]}
22... d3 {[%clk 0:01:42.6]} 23. Neg3 {[%clk 0:02:00]} 23... c4 {[%clk
0:01:42.9]} 24. Nxe7+ {[%clk 0:01:57.7]} 24... Qxe7 {[%clk 0:01:42.8]} 25. Nf5
{[%clk 0:01:57.9]} 25... Qd7 {[%clk 0:01:42.6]} 26. bxc4 {[%clk 0:01:57.1]}
26... Nxc4 {[%clk 0:01:40.3]} 27. h6 {[%clk 0:01:45.8]} 27... g6 {[%clk
0:01:11.6]} 28. Ng7 {[%clk 0:01:17.7]} 28... Rfc8 {[%clk 0:00:45.8]} 29. Nh5
{[%clk 0:01:11.4]} 29... Qe7 {[%clk 0:00:39.6]} 30. Nf6+ {[%clk 0:01:09]} 30...
Kh8 {[%clk 0:00:38.4]} 31. Rhd1 {[%clk 0:01:05.8]} 31... Ne5 {[%clk 0:00:36.3]}
32. Qe3 {[%clk 0:01:02.5]} 32... Rc2+ {[%clk 0:00:36]} 33. Kg3 {[%clk
0:01:02.2]} 33... Rcxa2 {[%clk 0:00:28.3]} 34. Rxa2 {[%clk 0:00:57.6]} 34...
Rxa2 {[%clk 0:00:29.2]} 35. f4 {[%clk 0:00:47.8]} 35... Qc7 {[%clk 0:00:13]} 36.
fxe5 {[%clk 0:00:41.4]} 36... Qc2 {[%clk 0:00:12.9]} 37. Rd2 {[%clk 0:00:26.8]}
37... Qxd2 {[%clk 0:00:03.8]} 38. Qxd2 {[%clk 0:00:27.7]} 38... Rxd2 {[%clk
0:00:04.4]} 39. exd6 {[%clk 0:00:27.6]} 39... Ra2 {[%clk 0:00:03.4]} 40. d7
{[%clk 0:00:27.8]} 40... Ra8 {[%clk 0:00:03.5]} 41. Kf3 {[%clk 0:00:26.5]} 41...
b3 {[%clk 0:00:04]} 42. e5 {[%clk 0:00:23.4]} 42... b2 {[%clk 0:00:03.9]} 43. e6
{[%clk 0:00:24]} 43... b1=Q {[%clk 0:00:04.2]} 44. e7 {[%clk 0:00:24.2]} 44...
Qf1+ {[%clk 0:00:03.7]} 45. Kg3 {[%clk 0:00:22.4]} 45... Qe1+ {[%clk 0:00:03.2]}
46. Kf4 {[%clk 0:00:21.9]} 46... Qxe7 {[%clk 0:00:04.1]} 47. d8=Q+ {[%clk
0:00:17.1]} 47... Rxd8 {[%clk 0:00:03.7]} 48. Ng4 {[%clk 0:00:16.7]} 48... Rxd5
{[%clk 0:00:02.6]} 49. Ne3 {[%clk 0:00:15.8]} 49... Rf5+ {[%clk 0:00:03.5]} 50.
Nxf5 {[%clk 0:00:15.1]} 50... gxf5 {[%clk 0:00:04.4]} 51. Kxf5 {[%clk
0:00:15.5]} 51... d2 {[%clk 0:00:04.8]} 52. g6 {[%clk 0:00:16.4]} 52... Qe6+
{[%clk 0:00:05]} 53. Kf4 {[%clk 0:00:16.1]} 53... fxg6 {[%clk 0:00:04.6]} 54.
Kg5 {[%clk 0:00:16]} 54... Qf5+ {[%clk 0:00:05]} 55. Kh4 {[%clk 0:00:16.2]}
55... d1=Q {[%clk 0:00:04.3]} 56. Kg3 {[%clk 0:00:17.1]} 56... Qdg4+ {[%clk
0:00:04.7]} 57. Kh2 {[%clk 0:00:17]} 57... Qfh5# {[%clk 0:00:05.6]} 0-1

[Event "Early-Titled-Tuesday-Blitz-September-05-2023"]
[Site "Chess.com"]
[Date "2023.09.05"]
[Round "5"]
[White "fen_fire"]
[Black "hurricane7791"]
[Result "0-1"]
[WhiteElo "2476"]
[BlackElo "2693"]
[TimeControl "180+1"]
[EndTime "8:55:04 PDT"]
[Termination "hurricane7791 won on time"]

1. Nf3 {[%clk 0:03:00.9]} 1... c5 {[%clk 0:02:59.1]} 2. e3 {[%clk 0:02:57.7]}
2... Nf6 {[%clk 0:02:57.1]} 3. d4 {[%clk 0:02:57.6]} 3... g6 {[%clk 0:02:57.7]}
4. Nbd2 {[%clk 0:02:57.2]} 4... Bg7 {[%clk 0:02:58.6]} 5. b3 {[%clk 0:02:57.1]}
5... O-O {[%clk 0:02:57.7]} 6. Bb2 {[%clk 0:02:57.6]} 6... cxd4 {[%clk
0:02:57.7]} 7. Nxd4 {[%clk 0:02:54.6]} 7... d5 {[%clk 0:02:54.3]} 8. Be2 {[%clk
0:02:53.8]} 8... Re8 {[%clk 0:02:54.9]} 9. O-O {[%clk 0:02:49]} 9... e5 {[%clk
0:02:52]} 10. N4f3 {[%clk 0:02:49.6]} 10... Nc6 {[%clk 0:02:52.4]} 11. c4 {[%clk
0:02:49.9]} 11... d4 {[%clk 0:02:52.3]} 12. exd4 {[%clk 0:02:34.4]} 12... e4
{[%clk 0:02:38.8]} 13. Ne1 {[%clk 0:02:18.7]} 13... Nxd4 {[%clk 0:02:38.6]} 14.
Nc2 {[%clk 0:02:07.7]} 14... Nxe2+ {[%clk 0:02:32.5]} 15. Qxe2 {[%clk
0:02:08.6]} 15... Bg4 {[%clk 0:02:32.6]} 16. Qe1 {[%clk 0:02:03.7]} 16... Bd7
{[%clk 0:02:14.9]} 17. Ne3 {[%clk 0:01:59.2]} 17... Bc6 {[%clk 0:02:15]} 18. Rd1
{[%clk 0:01:56.6]} 18... Qe7 {[%clk 0:02:15.1]} 19. Nb1 {[%clk 0:01:53.1]} 19...
Nh5 {[%clk 0:02:06]} 20. Bxg7 {[%clk 0:01:50.6]} 20... Kxg7 {[%clk 0:02:06.3]}
21. Nc3 {[%clk 0:01:47.3]} 21... f5 {[%clk 0:02:06.1]} 22. Ncd5 {[%clk
0:01:41.6]} 22... Qe5 {[%clk 0:02:06]} 23. c5 {[%clk 0:01:04]} 23... Bb5 {[%clk
0:01:42.1]} 24. Nc4 {[%clk 0:00:56.7]} 24... Bxc4 {[%clk 0:01:42]} 25. bxc4
{[%clk 0:00:57.6]} 25... Rad8 {[%clk 0:01:39.3]} 26. Qb4 {[%clk 0:00:56]} 26...
Rd7 {[%clk 0:01:36.4]} 27. Rfe1 {[%clk 0:00:50.4]} 27... Red8 {[%clk 0:01:32.3]}
28. Qb3 {[%clk 0:00:31.9]} 28... Nf6 {[%clk 0:01:16.7]} 29. Nxf6 {[%clk
0:00:29.5]} 29... Kxf6 {[%clk 0:01:16.2]} 30. Rxd7 {[%clk 0:00:14.7]} 30... Rxd7
{[%clk 0:01:17.1]} 31. Rd1 {[%clk 0:00:14.5]} 31... Rxd1+ {[%clk 0:01:11.3]} 32.
Qxd1 {[%clk 0:00:15.4]} 32... Qxc5 {[%clk 0:01:11.7]} 33. Qd8+ {[%clk
0:00:15.8]} 33... Kf7 {[%clk 0:01:12.3]} 34. Qd7+ {[%clk 0:00:15.7]} 34... Qe7
{[%clk 0:01:12.7]} 35. Qd5+ {[%clk 0:00:15.8]} 35... Kg7 {[%clk 0:01:08.3]} 36.
c5 {[%clk 0:00:15.7]} 36... Kf6 {[%clk 0:01:06.4]} 37. g3 {[%clk 0:00:15.5]}
37... e3 {[%clk 0:00:58.5]} 38. Qd4+ {[%clk 0:00:14.8]} 38... Qe5 {[%clk
0:00:58.8]} 39. Qd8+ {[%clk 0:00:12.5]} 39... Kf7 {[%clk 0:00:58.6]} 40. Qd7+
{[%clk 0:00:12.3]} 40... Qe7 {[%clk 0:00:59.2]} 41. Qd5+ {[%clk 0:00:12.1]}
41... Kf8 {[%clk 0:00:58.1]} 42. Kf1 {[%clk 0:00:03.6]} 42... exf2 {[%clk
0:00:53.9]} 43. Kxf2 {[%clk 0:00:04.5]} 43... Ke8 {[%clk 0:00:53.9]} 44. Kg1
{[%clk 0:00:04.3]} 44... Qf7 {[%clk 0:00:52.5]} 45. Qe5+ {[%clk 0:00:03.7]}
45... Qe7 {[%clk 0:00:46.9]} 46. Qb8+ {[%clk 0:00:04.1]} 46... Kf7 {[%clk
0:00:46.7]} 47. Qxa7 {[%clk 0:00:05]} 47... Ke6 {[%clk 0:00:45.9]} 48. Kg2
{[%clk 0:00:04.8]} 48... Kd5 {[%clk 0:00:43.7]} 49. Qa4 {[%clk 0:00:03.4]} 49...
Qe4+ {[%clk 0:00:41]} 50. Qxe4+ {[%clk 0:00:02.3]} 50... fxe4 {[%clk 0:00:41.9]}
51. Kf2 {[%clk 0:00:02.4]} 51... Kxc5 {[%clk 0:00:42.4]} 52. Ke3 {[%clk
0:00:03.1]} 52... Kd5 {[%clk 0:00:43.1]} 53. g4 {[%clk 0:00:03.4]} 53... g5
{[%clk 0:00:43.3]} 54. h3 {[%clk 0:00:03.2]} 54... Ke5 {[%clk 0:00:43.3]} 55. a3
{[%clk 0:00:02.9]} 55... b5 {[%clk 0:00:43.4]} 56. Ke2 {[%clk 0:00:01.9]} 56...
Kf4 {[%clk 0:00:43.9]} 57. Kf2 {[%clk 0:00:02.1]} 57... e3+ {[%clk 0:00:43.1]}
58. Ke2 {[%clk 0:00:03]} 58... Ke4 {[%clk 0:00:43.9]} 59. Ke1 {[%clk 0:00:03.6]}
59... Kf3 {[%clk 0:00:44.5]} 60. Kf1 {[%clk 0:00:03.8]} 60... Kg3 {[%clk
0:00:44.3]} 61. Ke2 {[%clk 0:00:04]} 61... Kxh3 {[%clk 0:00:45.2]} 62. Kxe3
{[%clk 0:00:04.9]} 62... Kxg4 {[%clk 0:00:46.1]} 63. Kd3 {[%clk 0:00:05.8]}
63... h5 {[%clk 0:00:46.7]} 64. Kc3 {[%clk 0:00:06.7]} 64... h4 {[%clk
0:00:47.4]} 65. a4 {[%clk 0:00:07.6]} 65... bxa4 {[%clk 0:00:47.4]} 0-1

[Event "Early-Titled-Tuesday-Blitz-September-05-2023"]
[Site "Chess.com"]
[Date "2023.09.05"]
[Round "5"]
[White "Sibelephant"]
[Black "TimofeevAr"]
[Result "1-0"]
[WhiteElo "3133"]
[BlackElo "2859"]
[TimeControl "180+1"]
[EndTime "8:55:07 PDT"]
[Termination "Sibelephant won on time"]

1. Nf3 {[%clk 0:02:59.7]} 1... d5 {[%clk 0:02:58.9]} 2. g3 {[%clk 0:02:59.7]}
2... Bf5 {[%clk 0:02:57.2]} 3. c4 {[%clk 0:02:58.5]} 3... c6 {[%clk 0:02:55.4]}
4. Qb3 {[%clk 0:02:56.7]} 4... Qb6 {[%clk 0:02:48.7]} 5. cxd5 {[%clk 0:02:56]}
5... Qxb3 {[%clk 0:02:47.4]} 6. axb3 {[%clk 0:02:56.3]} 6... cxd5 {[%clk
0:02:47.7]} 7. Nc3 {[%clk 0:02:55.9]} 7... Nf6 {[%clk 0:02:10.6]} 8. Nb5 {[%clk
0:02:32.1]} 8... Kd8 {[%clk 0:02:10.1]} 9. Ne5 {[%clk 0:02:27.8]} 9... Be6
{[%clk 0:02:08.6]} 10. Nd4 {[%clk 0:02:15.1]} 10... Ke8 {[%clk 0:02:00.7]} 11.
Nxe6 {[%clk 0:02:14.4]} 11... fxe6 {[%clk 0:02:00.7]} 12. Bh3 {[%clk 0:02:14.1]}
12... Nbd7 {[%clk 0:02:00.3]} 13. d4 {[%clk 0:02:12.8]} 13... g6 {[%clk
0:01:11.3]} 14. Bxe6 {[%clk 0:02:11.5]} 14... Bg7 {[%clk 0:01:11.6]} 15. O-O
{[%clk 0:01:34.5]} 15... Nb6 {[%clk 0:01:10.4]} 16. Bd2 {[%clk 0:01:02.2]} 16...
Ne4 {[%clk 0:01:09.9]} 17. Ba5 {[%clk 0:01:02.2]} 17... Ng5 {[%clk 0:01:05.8]}
18. Bg4 {[%clk 0:00:54.7]} 18... Bxe5 {[%clk 0:00:49.8]} 19. Bxb6 {[%clk
0:00:47.2]} 19... Bf6 {[%clk 0:00:47.6]} 20. h4 {[%clk 0:00:43.1]} 20... Ne4
{[%clk 0:00:46.3]} 21. Be6 {[%clk 0:00:38.9]} 21... Nd2 {[%clk 0:00:44]} 22.
Rfd1 {[%clk 0:00:35.6]} 22... Nxb3 {[%clk 0:00:44]} 23. Ra3 {[%clk 0:00:28.4]}
23... h5 {[%clk 0:00:40.5]} 24. e3 {[%clk 0:00:18.7]} 24... g5 {[%clk
0:00:37.4]} 25. hxg5 {[%clk 0:00:18.5]} 25... Bxg5 {[%clk 0:00:37.6]} 26. Bc7
{[%clk 0:00:14.5]} 26... Rh6 {[%clk 0:00:30.3]} 27. Bxd5 {[%clk 0:00:13.6]}
27... Rc8 {[%clk 0:00:30.1]} 28. Be5 {[%clk 0:00:13.5]} 28... Nc1 {[%clk
0:00:29.6]} 29. Rxa7 {[%clk 0:00:11.9]} 29... h4 {[%clk 0:00:28.3]} 30. Rxb7
{[%clk 0:00:09]} 30... hxg3 {[%clk 0:00:26.8]} 31. Bxg3 {[%clk 0:00:09.2]} 31...
Ne2+ {[%clk 0:00:26.2]} 32. Kg2 {[%clk 0:00:09.8]} 32... Nxg3 {[%clk 0:00:23.2]}
33. Kxg3 {[%clk 0:00:08.8]} 33... Bh4+ {[%clk 0:00:23]} 34. Kf3 {[%clk
0:00:09.3]} 34... Rf6+ {[%clk 0:00:21.2]} 35. Ke4 {[%clk 0:00:09.5]} 35... Bxf2
{[%clk 0:00:21]} 36. Rh1 {[%clk 0:00:09.4]} 36... Bg3 {[%clk 0:00:11.7]} 37.
Rh8+ {[%clk 0:00:07.9]} 37... Rf8 {[%clk 0:00:11.9]} 38. Rxf8+ {[%clk
0:00:04.1]} 38... Kxf8 {[%clk 0:00:12]} 39. b4 {[%clk 0:00:04.8]} 39... Bd6
{[%clk 0:00:11.7]} 40. b5 {[%clk 0:00:04.3]} 40... Rc3 {[%clk 0:00:12.2]} 41. b6
{[%clk 0:00:04]} 41... Ba3 {[%clk 0:00:12.2]} 42. Ra7 {[%clk 0:00:03.7]} 42...
Bc1 {[%clk 0:00:10.5]} 43. b7 {[%clk 0:00:04]} 43... Rxe3+ {[%clk 0:00:10.7]}
44. Kf5 {[%clk 0:00:04.6]} 1-0

[Event "Early-Titled-Tuesday-Blitz-September-05-2023"]
[Site "Chess.com"]
[Date "2023.09.05"]
[Round "5"]
[White "Anton_Demchenko"]
[Black "chess123456s"]
[Result "1-0"]
[WhiteElo "2926"]
[BlackElo "2669"]
[TimeControl "180+1"]
[EndTime "8:55:07 PDT"]
[Termination "Anton_Demchenko won by resignation"]

1. e4 {[%clk 0:02:55.6]} 1... e5 {[%clk 0:02:59.8]} 2. Nf3 {[%clk 0:02:55.1]}
2... Nc6 {[%clk 0:03:00]} 3. Bc4 {[%clk 0:02:54.6]} 3... Nf6 {[%clk 0:03:00.2]}
4. d3 {[%clk 0:02:55.1]} 4... Bc5 {[%clk 0:03:00.3]} 5. O-O {[%clk 0:02:48]}
5... d6 {[%clk 0:03:00.2]} 6. c3 {[%clk 0:02:47.3]} 6... a5 {[%clk 0:03:00.2]}
7. Nbd2 {[%clk 0:02:40.8]} 7... O-O {[%clk 0:03:00]} 8. h3 {[%clk 0:02:39.6]}
8... Be6 {[%clk 0:02:59.3]} 9. Re1 {[%clk 0:02:34.5]} 9... Ba7 {[%clk
0:02:48.8]} 10. Bxe6 {[%clk 0:02:22.7]} 10... fxe6 {[%clk 0:02:49.7]} 11. Nf1
{[%clk 0:02:23.3]} 11... Qe8 {[%clk 0:02:42.3]} 12. Be3 {[%clk 0:02:23.2]} 12...
Bxe3 {[%clk 0:02:38.1]} 13. Rxe3 {[%clk 0:02:24.1]} 13... Qg6 {[%clk 0:02:38.5]}
14. g3 {[%clk 0:02:18.1]} 14... d5 {[%clk 0:02:27]} 15. Qc2 {[%clk 0:02:05]}
15... a4 {[%clk 0:02:25.5]} 16. Rae1 {[%clk 0:02:00.1]} 16... dxe4 {[%clk
0:02:06.9]} 17. dxe4 {[%clk 0:01:58.6]} 17... Nd5 {[%clk 0:01:57.6]} 18. Nh4
{[%clk 0:01:06.1]} 18... Nxe3 {[%clk 0:01:50.4]} 19. Nxe3 {[%clk 0:01:07]} 19...
Qh5 {[%clk 0:01:36.8]} 20. Ng4 {[%clk 0:00:47.2]} 20... g5 {[%clk 0:01:18.8]}
21. Qe2 {[%clk 0:00:47.8]} 21... Qg6 {[%clk 0:01:02.7]} 22. Nf3 {[%clk
0:00:45.7]} 22... Qg7 {[%clk 0:00:49]} 23. h4 {[%clk 0:00:46]} 23... h5 {[%clk
0:00:43.9]} 24. Ne3 {[%clk 0:00:42]} 24... g4 {[%clk 0:00:43.9]} 25. Ng5 {[%clk
0:00:41.8]} 25... Qf6 {[%clk 0:00:39.3]} 26. Rf1 {[%clk 0:00:41.9]} 26... Rad8
{[%clk 0:00:36.1]} 27. Qc4 {[%clk 0:00:42.3]} 27... Rd2 {[%clk 0:00:28.1]} 28.
f3 {[%clk 0:00:38]} 28... gxf3 {[%clk 0:00:17.8]} 29. Nxf3 {[%clk 0:00:34.5]}
29... Qh6 {[%clk 0:00:12.5]} 30. Nf5 {[%clk 0:00:31.5]} 30... Rxf5 {[%clk
0:00:09.1]} 31. exf5 {[%clk 0:00:32.2]} 31... Qe3+ {[%clk 0:00:09.3]} 32. Kh1
{[%clk 0:00:33]} 32... Rf2 {[%clk 0:00:07.9]} 33. Qxe6+ {[%clk 0:00:26.6]} 33...
Kf8 {[%clk 0:00:08.4]} 34. Rxf2 {[%clk 0:00:24.7]} 34... Qxf2 {[%clk 0:00:08.3]}
35. Qh6+ {[%clk 0:00:22]} 35... Ke7 {[%clk 0:00:07.8]} 36. Qg5+ {[%clk
0:00:21.4]} 36... Kf8 {[%clk 0:00:07.6]} 37. Nh2 {[%clk 0:00:11.4]} 37... Qe1+
{[%clk 0:00:07.3]} 38. Kg2 {[%clk 0:00:12]} 38... Qe2+ {[%clk 0:00:07.4]} 39.
Kh3 {[%clk 0:00:12.5]} 39... Ne7 {[%clk 0:00:07.6]} 40. f6 {[%clk 0:00:12.2]}
40... Nd5 {[%clk 0:00:03.8]} 41. Qg7+ {[%clk 0:00:12.7]} 41... Ke8 {[%clk
0:00:04.5]} 42. f7+ {[%clk 0:00:13.5]} 42... Kd7 {[%clk 0:00:04.9]} 43. f8=Q+
{[%clk 0:00:14.3]} 43... Kc6 {[%clk 0:00:05.6]} 44. Qf3 {[%clk 0:00:11.5]} 44...
Qe1 {[%clk 0:00:03.2]} 45. Qg6+ {[%clk 0:00:08.9]} 45... Kc5 {[%clk 0:00:02.3]}
46. Qge4 {[%clk 0:00:08.6]} 46... c6 {[%clk 0:00:01.9]} 47. Qxe1 {[%clk
0:00:08.4]} 1-0